[Event "*** Titled Tuesday Blitz"]
[Site "Chess.com"]
[Date "2020.12.01"]
[Round "9"]
[White "ShahMatKanal"]
[Black "dosto07"]
[Result "1-0"]
[WhiteElo "2479"]
[BlackElo "2298"]
[TimeControl "180+1"]
[EndTime "11:45:22 PST"]
[Termination "ShahMatKanal won on time"]

1. Nf3 {[%clk 0:03:00.9]} 1... d5 {[%clk 0:02:59.3]} 2. c4 {[%clk 0:03:00.6]}
2... d4 {[%clk 0:02:58.2]} 3. e3 {[%clk 0:02:55.2]} 3... Nc6 {[%clk 0:02:57.6]}
4. b4 {[%clk 0:02:46.4]} 4... dxe3 {[%clk 0:02:53.2]} 5. fxe3 {[%clk 0:02:40.4]}
5... Nxb4 {[%clk 0:02:52.7]} 6. d4 {[%clk 0:02:35.8]} 6... e6 {[%clk 0:02:44.1]}
7. a3 {[%clk 0:02:22.2]} 7... Nc6 {[%clk 0:02:42.8]} 8. d5 {[%clk 0:02:04.4]}
8... Nb8 {[%clk 0:02:36.9]} 9. Nc3 {[%clk 0:01:48.5]} 9... Nf6 {[%clk
0:02:36.3]} 10. Bd3 {[%clk 0:01:35.3]} 10... exd5 {[%clk 0:02:24.7]} 11. cxd5
{[%clk 0:01:35.4]} 11... Bc5 {[%clk 0:02:20]} 12. O-O {[%clk 0:01:22.6]} 12...
O-O {[%clk 0:02:18.8]} 13. Kh1 {[%clk 0:01:20.2]} 13... Bg4 {[%clk 0:02:02]} 14.
e4 {[%clk 0:01:11]} 14... Nbd7 {[%clk 0:02:00.5]} 15. Bg5 {[%clk 0:01:06.2]}
15... h6 {[%clk 0:01:59.5]} 16. Bh4 {[%clk 0:01:05.9]} 16... Re8 {[%clk
0:01:53.1]} 17. Qb3 {[%clk 0:00:43.4]} 17... Bxf3 {[%clk 0:01:48.2]} 18. gxf3
{[%clk 0:00:39.3]} 18... Bd4 {[%clk 0:01:46.5]} 19. Qc2 {[%clk 0:00:26.4]} 19...
Ne5 {[%clk 0:01:38.9]} 20. Bb5 {[%clk 0:00:25.2]} 20... c6 {[%clk 0:01:36]} 21.
dxc6 {[%clk 0:00:25.5]} 21... bxc6 {[%clk 0:01:36.4]} 22. Ba4 {[%clk 0:00:24.3]}
22... Qa5 {[%clk 0:01:34.4]} 23. Be1 {[%clk 0:00:18.3]} 23... Qa6 {[%clk
0:01:20.5]} 24. Bg3 {[%clk 0:00:12.8]} 24... Qa5 {[%clk 0:01:08.8]} 25. Be1
{[%clk 0:00:11.3]} 25... Qc5 {[%clk 0:01:08.3]} 26. Rc1 {[%clk 0:00:10.5]} 26...
Qc4 {[%clk 0:01:02.4]} 27. Bg3 {[%clk 0:00:08.8]} 27... Nd3 {[%clk 0:00:57.5]}
28. Bb3 {[%clk 0:00:08.4]} 28... Qa6 {[%clk 0:00:41.5]} 29. Qe2 {[%clk
0:00:08.6]} 29... Nc5 {[%clk 0:00:34.5]} 30. Qxa6 {[%clk 0:00:07.8]} 30... Nxa6
{[%clk 0:00:34.5]} 31. Ne2 {[%clk 0:00:07.2]} 31... c5 {[%clk 0:00:30.6]} 32.
Nxd4 {[%clk 0:00:07.3]} 32... cxd4 {[%clk 0:00:29.7]} 33. Rfd1 {[%clk
0:00:08.2]} 33... Rac8 {[%clk 0:00:19.1]} 34. Rxc8 {[%clk 0:00:06.9]} 34... Rxc8
{[%clk 0:00:19.1]} 35. Rxd4 {[%clk 0:00:07.3]} 35... Nc5 {[%clk 0:00:19.5]} 36.
Rc4 {[%clk 0:00:06.1]} 36... Nfd7 {[%clk 0:00:17.4]} 37. Bf2 {[%clk 0:00:05.3]}
37... Rc7 {[%clk 0:00:15.9]} 38. Bc2 {[%clk 0:00:05]} 38... Ne6 {[%clk
0:00:15.7]} 39. Rxc7 {[%clk 0:00:05.9]} 39... Nxc7 {[%clk 0:00:15.7]} 40. Bxa7
{[%clk 0:00:06.5]} 40... Nb5 {[%clk 0:00:15.6]} 41. Ba4 {[%clk 0:00:06.2]} 41...
Nxa7 {[%clk 0:00:15.3]} 42. Bxd7 {[%clk 0:00:06.4]} 42... Kf8 {[%clk 0:00:15.8]}
43. Kg2 {[%clk 0:00:04.5]} 43... Ke7 {[%clk 0:00:16.1]} 44. Ba4 {[%clk
0:00:03.2]} 44... Kd6 {[%clk 0:00:15.4]} 45. f4 {[%clk 0:00:02.5]} 45... f6
{[%clk 0:00:15.1]} 46. Kf3 {[%clk 0:00:02.7]} 46... Kc5 {[%clk 0:00:15.6]} 47.
Bb3 {[%clk 0:00:02.7]} 47... Kd4 {[%clk 0:00:14.7]} 48. h3 {[%clk 0:00:02.7]}
48... Nc8 {[%clk 0:00:14.8]} 49. Bd5 {[%clk 0:00:02.9]} 49... Nd6 {[%clk
0:00:15]} 50. Ba8 {[%clk 0:00:02.8]} 50... Nc4 {[%clk 0:00:13.9]} 51. a4 {[%clk
0:00:02.2]} 51... Nd2+ {[%clk 0:00:13.3]} 52. Kg4 {[%clk 0:00:02.4]} 52... Nb3
{[%clk 0:00:12.2]} 53. Kf5 {[%clk 0:00:02.7]} 53... g5 {[%clk 0:00:11.4]} 54.
fxg5 {[%clk 0:00:01.9]} 54... fxg5 {[%clk 0:00:11.2]} 55. e5 {[%clk 0:00:01.5]}
55... Nc5 {[%clk 0:00:10.8]} 56. e6 {[%clk 0:00:02]} 56... Na6 {[%clk
0:00:09.7]} 57. e7 {[%clk 0:00:02]} 57... Nc7 {[%clk 0:00:10.6]} 58. Bc6 {[%clk
0:00:02.4]} 58... Kc5 {[%clk 0:00:09.9]} 59. e8=Q {[%clk 0:00:02.8]} 59... Nxe8
{[%clk 0:00:10.2]} 60. Bxe8 {[%clk 0:00:03.7]} 60... Kd4 {[%clk 0:00:10.4]} 61.
Kg4 {[%clk 0:00:04]} 61... Ke3 {[%clk 0:00:11]} 62. a5 {[%clk 0:00:03.8]} 62...
Kf2 {[%clk 0:00:11.6]} 63. a6 {[%clk 0:00:04.2]} 63... Kg1 {[%clk 0:00:12.5]}
64. a7 {[%clk 0:00:04.9]} 64... Kh2 {[%clk 0:00:13.4]} 65. a8=Q {[%clk
0:00:05.8]} 65... Kg1 {[%clk 0:00:12.5]} 66. Qf3 {[%clk 0:00:05.8]} 66... Kh2
{[%clk 0:00:12.5]} 67. Kh5 {[%clk 0:00:06]} 67... Kg1 {[%clk 0:00:11]} 68. Kxh6
{[%clk 0:00:06.4]} 68... Kh2 {[%clk 0:00:10.6]} 69. Kxg5 {[%clk 0:00:06.8]}
69... Kg1 {[%clk 0:00:09.7]} 70. h4 {[%clk 0:00:07.7]} 70... Kh2 {[%clk
0:00:08.9]} 71. h5 {[%clk 0:00:08.6]} 71... Kg1 {[%clk 0:00:09.4]} 72. h6 {[%clk
0:00:09.5]} 72... Kh2 {[%clk 0:00:09.8]} 73. h7 {[%clk 0:00:10.4]} 73... Kg1
{[%clk 0:00:10.4]} 74. Qg3+ {[%clk 0:00:09.5]} 1-0

[Event "*** Titled Tuesday Blitz"]
[Site "Chess.com"]
[Date "2020.12.01"]
[Round "9"]
[White "Leonid_Starozhilov"]
[Black "Kretov_Evgenij"]
[Result "0-1"]
[WhiteElo "2643"]
[BlackElo "2516"]
[TimeControl "180+1"]
[EndTime "11:45:29 PST"]
[Termination "Kretov_Evgenij won by resignation"]

1. b3 {[%clk 0:03:00.9]} 1... c5 {[%clk 0:02:59.1]} 2. Bb2 {[%clk 0:03:01.1]}
2... Nf6 {[%clk 0:02:59.5]} 3. Nf3 {[%clk 0:03:01.7]} 3... b6 {[%clk 0:02:59.7]}
4. c4 {[%clk 0:02:55.1]} 4... Bb7 {[%clk 0:02:59.6]} 5. e3 {[%clk 0:02:53.9]}
5... e6 {[%clk 0:02:59.4]} 6. Be2 {[%clk 0:02:52.6]} 6... Be7 {[%clk 0:02:59.3]}
7. O-O {[%clk 0:02:53.1]} 7... O-O {[%clk 0:02:59.4]} 8. Nc3 {[%clk 0:02:53.7]}
8... d5 {[%clk 0:02:58.8]} 9. cxd5 {[%clk 0:02:53.9]} 9... Nxd5 {[%clk
0:02:58.8]} 10. d4 {[%clk 0:02:51.2]} 10... cxd4 {[%clk 0:02:56.2]} 11. Nxd5
{[%clk 0:02:48.1]} 11... Qxd5 {[%clk 0:02:54.7]} 12. Qxd4 {[%clk 0:02:47.1]}
12... Qxd4 {[%clk 0:02:52.5]} 13. Nxd4 {[%clk 0:02:45.8]} 13... Bf6 {[%clk
0:02:50.3]} 14. Ba3 {[%clk 0:02:21.3]} 14... Rd8 {[%clk 0:02:47.2]} 15. Rfd1
{[%clk 0:02:12.6]} 15... Nd7 {[%clk 0:02:24.7]} 16. Rac1 {[%clk 0:02:08.6]}
16... Rac8 {[%clk 0:01:58.8]} 17. Nb5 {[%clk 0:01:51.7]} 17... Rxc1 {[%clk
0:01:53.5]} 18. Rxc1 {[%clk 0:01:46.7]} 18... a5 {[%clk 0:01:50.4]} 19. Bf3
{[%clk 0:01:05]} 19... Bxf3 {[%clk 0:01:47.8]} 20. gxf3 {[%clk 0:01:05.9]} 20...
g5 {[%clk 0:01:35.6]} 21. Bd6 {[%clk 0:00:55]} 21... Ne5 {[%clk 0:01:32.4]} 22.
Bxe5 {[%clk 0:00:38.7]} 22... Bxe5 {[%clk 0:01:32.3]} 23. Rc2 {[%clk 0:00:34.4]}
23... Rd5 {[%clk 0:01:27.7]} 24. a4 {[%clk 0:00:27.9]} 24... Rd3 {[%clk
0:01:25.3]} 25. Rc6 {[%clk 0:00:25.3]} 25... Rxb3 {[%clk 0:01:25.4]} 26. Rxb6
{[%clk 0:00:25.4]} 26... Rb4 {[%clk 0:01:25.1]} 27. Rb7 {[%clk 0:00:21.9]} 27...
Rxa4 {[%clk 0:01:24.9]} 28. Nc7 {[%clk 0:00:20.4]} 28... Rb4 {[%clk 0:01:19.5]}
29. Ra7 {[%clk 0:00:20.7]} 29... a4 {[%clk 0:01:19.3]} 30. Kg2 {[%clk
0:00:20.5]} 30... Kg7 {[%clk 0:01:17.4]} 31. Nxe6+ {[%clk 0:00:14.6]} 31... Kf6
{[%clk 0:01:16]} 32. Nd8 {[%clk 0:00:12.1]} 32... Bb2 {[%clk 0:01:11.7]} 33.
Nxf7 {[%clk 0:00:08.9]} 33... a3 {[%clk 0:01:11.3]} 34. Nd6 {[%clk 0:00:09.3]}
34... h5 {[%clk 0:01:06.3]} 35. Ra5 {[%clk 0:00:07.3]} 35... g4 {[%clk
0:01:02.5]} 36. Ne4+ {[%clk 0:00:06.6]} 36... Ke7 {[%clk 0:01:00.9]} 37. Nc5
{[%clk 0:00:04.4]} 37... gxf3+ {[%clk 0:01:00.6]} 38. Kxf3 {[%clk 0:00:05.3]}
38... h4 {[%clk 0:01:00.3]} 39. h3 {[%clk 0:00:05.2]} 39... Kd6 {[%clk
0:00:59.4]} 40. Nd3 {[%clk 0:00:05.5]} 40... Rb3 {[%clk 0:00:58.9]} 41. Ke4
{[%clk 0:00:05.9]} 41... Kc6 {[%clk 0:00:58.2]} 42. f4 {[%clk 0:00:05.8]} 42...
Kb6 {[%clk 0:00:57.6]} 43. Ra8 {[%clk 0:00:05.9]} 43... Rb5 {[%clk 0:00:55.5]}
44. Rb8+ {[%clk 0:00:04]} 44... Kc6 {[%clk 0:00:51.8]} 45. Rc8+ {[%clk 0:00:03]}
45... Kb7 {[%clk 0:00:51.4]} 46. Rg8 {[%clk 0:00:02]} 46... a2 {[%clk
0:00:51.5]} 47. Rg1 {[%clk 0:00:01.5]} 47... a1=Q {[%clk 0:00:51.1]} 48. Rxa1
{[%clk 0:00:02]} 48... Bxa1 {[%clk 0:00:51.4]} 49. Kf3 {[%clk 0:00:02]} 49...
Kc6 {[%clk 0:00:49.1]} 50. Nf2 {[%clk 0:00:02.9]} 50... Bf6 {[%clk 0:00:48.6]}
51. Ng4 {[%clk 0:00:03]} 51... Be7 {[%clk 0:00:48.7]} 52. Nf2 {[%clk 0:00:02.2]}
52... Kd5 {[%clk 0:00:48.3]} 53. Nd3 {[%clk 0:00:02.7]} 53... Rb3 {[%clk
0:00:46.6]} 54. Ne5 {[%clk 0:00:02]} 54... Bc5 {[%clk 0:00:46.4]} 55. Ng4 {[%clk
0:00:02]} 55... Bb6 {[%clk 0:00:46.3]} 56. Nf6+ {[%clk 0:00:02.4]} 56... Ke6
{[%clk 0:00:44.9]} 57. Ng4 {[%clk 0:00:03.3]} 57... Ra3 {[%clk 0:00:43.7]} 58.
Ke4 {[%clk 0:00:03.1]} 58... Ra4+ {[%clk 0:00:44]} 59. Kf3 {[%clk 0:00:03.7]}
59... Bc5 {[%clk 0:00:43.5]} 60. Nf2 {[%clk 0:00:03.2]} 60... Ra3 {[%clk
0:00:43.5]} 61. Ng4 {[%clk 0:00:03.8]} 61... Kf5 {[%clk 0:00:43.5]} 62. Nh6+
{[%clk 0:00:04.1]} 62... Kg6 {[%clk 0:00:43.8]} 63. Ng4 {[%clk 0:00:05]} 63...
Kf7 {[%clk 0:00:43.9]} 64. Ke4 {[%clk 0:00:05.2]} 64... Ke6 {[%clk 0:00:43.7]}
65. Kf3 {[%clk 0:00:05.4]} 65... Kd5 {[%clk 0:00:44.1]} 66. Kf2 {[%clk
0:00:04.4]} 66... Kc4 {[%clk 0:00:43.9]} 67. Kf3 {[%clk 0:00:04.6]} 67... Kd3
{[%clk 0:00:44.2]} 68. Ne5+ {[%clk 0:00:05.2]} 68... Kc3 {[%clk 0:00:43.3]} 69.
Kg4 {[%clk 0:00:05]} 69... Bxe3 {[%clk 0:00:42.3]} 70. Ng6 {[%clk 0:00:04.9]}
70... Ra4 {[%clk 0:00:41.6]} 71. Kxh4 {[%clk 0:00:04]} 71... Bxf4 {[%clk
0:00:41.5]} 72. Kh5 {[%clk 0:00:04.5]} 72... Kd3 {[%clk 0:00:39.2]} 73. h4
{[%clk 0:00:04.6]} 73... Ke4 {[%clk 0:00:39.5]} 74. Kg4 {[%clk 0:00:04.4]} 74...
Bd6 {[%clk 0:00:38.2]} 75. Kg5 {[%clk 0:00:04.7]} 75... Ra5+ {[%clk 0:00:34.1]}
76. Kh6 {[%clk 0:00:05.1]} 76... Kf5 {[%clk 0:00:33.6]} 77. h5 {[%clk
0:00:04.9]} 77... Ra7 {[%clk 0:00:33.5]} 78. Nh4+ {[%clk 0:00:03.9]} 78... Kf6
{[%clk 0:00:33]} 79. Ng6 {[%clk 0:00:04.3]} 79... Bg3 {[%clk 0:00:32.3]} 80. Ne7
{[%clk 0:00:02]} 80... Bf4+ {[%clk 0:00:32.2]} 81. Kh7 {[%clk 0:00:01.9]} 81...
Rxe7+ {[%clk 0:00:32.5]} 82. Kh8 {[%clk 0:00:02.5]} 82... Kg5 {[%clk 0:00:30.9]}
83. h6 {[%clk 0:00:02.9]} 83... Kxh6 {[%clk 0:00:30.8]} 84. Kg8 {[%clk
0:00:03.8]} 84... Kg6 {[%clk 0:00:31.1]} 0-1

[Event "*** Titled Tuesday Blitz"]
[Site "Chess.com"]
[Date "2020.12.01"]
[Round "9"]
[White "ApacheSVD"]
[Black "ZenBull"]
[Result "0-1"]
[WhiteElo "2413"]
[BlackElo "2226"]
[TimeControl "180+1"]
[EndTime "11:45:30 PST"]
[Termination "ZenBull won on time"]

1. e4 {[%clk 0:02:59]} 1... c5 {[%clk 0:02:59.6]} 2. Nf3 {[%clk 0:02:55.1]} 2...
e6 {[%clk 0:02:59.4]} 3. d4 {[%clk 0:02:54.2]} 3... cxd4 {[%clk 0:02:59.5]} 4.
Nxd4 {[%clk 0:02:54]} 4... Nc6 {[%clk 0:03:00.4]} 5. Nc3 {[%clk 0:02:52.9]} 5...
Qc7 {[%clk 0:03:00.7]} 6. Be3 {[%clk 0:02:43.6]} 6... a6 {[%clk 0:02:57.4]} 7.
Qf3 {[%clk 0:02:43.5]} 7... d6 {[%clk 0:02:56.2]} 8. O-O-O {[%clk 0:02:43.7]}
8... Bd7 {[%clk 0:02:56]} 9. Qg3 {[%clk 0:02:42.3]} 9... Nf6 {[%clk 0:02:50]}
10. f4 {[%clk 0:02:41]} 10... Be7 {[%clk 0:02:43.8]} 11. e5 {[%clk 0:02:41.2]}
11... Nh5 {[%clk 0:02:07.7]} 12. Qg4 {[%clk 0:02:19.4]} 12... g6 {[%clk
0:02:05.6]} 13. exd6 {[%clk 0:02:18.5]} 13... Qxd6 {[%clk 0:01:43.2]} 14. Nf3
{[%clk 0:01:31.8]} 14... Qc7 {[%clk 0:01:40.8]} 15. Ne5 {[%clk 0:01:27.1]} 15...
Nxe5 {[%clk 0:01:33.6]} 16. fxe5 {[%clk 0:01:27.5]} 16... Bc6 {[%clk 0:01:26.9]}
17. Bc4 {[%clk 0:01:03.8]} 17... Ng7 {[%clk 0:01:14.1]} 18. Rhe1 {[%clk
0:01:01]} 18... Nf5 {[%clk 0:01:13.8]} 19. Bg5 {[%clk 0:00:55.5]} 19... Rd8
{[%clk 0:01:01.8]} 20. Bxe7 {[%clk 0:00:53.5]} 20... Qxe7 {[%clk 0:00:59.4]} 21.
Rxd8+ {[%clk 0:00:49.2]} 21... Qxd8 {[%clk 0:00:59.1]} 22. Rd1 {[%clk
0:00:49.8]} 22... Qh4 {[%clk 0:00:56.6]} 23. Qxh4 {[%clk 0:00:21.9]} 23... Nxh4
{[%clk 0:00:57.5]} 24. g3 {[%clk 0:00:22.2]} 24... Nf3 {[%clk 0:00:54.3]} 25.
Ne2 {[%clk 0:00:18.6]} 25... Nxe5 {[%clk 0:00:53.2]} 26. Bb3 {[%clk 0:00:16.8]}
26... Ke7 {[%clk 0:00:52.9]} 27. Nd4 {[%clk 0:00:15.9]} 27... Rd8 {[%clk
0:00:49.7]} 28. c3 {[%clk 0:00:16.5]} 28... Bd5 {[%clk 0:00:42.1]} 29. Bxd5
{[%clk 0:00:14.3]} 29... Rxd5 {[%clk 0:00:41.6]} 30. Rf1 {[%clk 0:00:14.3]}
30... Nc6 {[%clk 0:00:36.5]} 31. Nxc6+ {[%clk 0:00:13.7]} 31... bxc6 {[%clk
0:00:36.5]} 32. Rf4 {[%clk 0:00:13.7]} 32... f5 {[%clk 0:00:34.3]} 33. Ra4
{[%clk 0:00:10.2]} 33... a5 {[%clk 0:00:34.4]} 34. b4 {[%clk 0:00:10.6]} 34...
axb4 {[%clk 0:00:33.4]} 35. cxb4 {[%clk 0:00:11.5]} 35... Kd6 {[%clk 0:00:27.1]}
36. Ra7 {[%clk 0:00:11.1]} 36... Rb5 {[%clk 0:00:20.2]} 37. a3 {[%clk
0:00:09.1]} 37... c5 {[%clk 0:00:20.3]} 38. Rxh7 {[%clk 0:00:03.9]} 38... cxb4
{[%clk 0:00:19.4]} 39. axb4 {[%clk 0:00:04.8]} 39... Rxb4 {[%clk 0:00:20.1]} 40.
Rg7 {[%clk 0:00:05.4]} 40... Rg4 {[%clk 0:00:19.1]} 41. Kd2 {[%clk 0:00:03.6]}
41... Ke5 {[%clk 0:00:17.7]} 42. Ke3 {[%clk 0:00:03.9]} 42... Kf6 {[%clk
0:00:18.1]} 43. Rg8 {[%clk 0:00:04]} 43... Ra4 {[%clk 0:00:17.9]} 44. Rf8+
{[%clk 0:00:04.2]} 44... Kg7 {[%clk 0:00:18.1]} 45. Re8 {[%clk 0:00:04.3]} 45...
Kf7 {[%clk 0:00:18.6]} 46. Rb8 {[%clk 0:00:04.6]} 46... Ra3+ {[%clk 0:00:18.7]}
47. Kf4 {[%clk 0:00:04.3]} 47... Ra4+ {[%clk 0:00:18.9]} 48. Kf3 {[%clk
0:00:04.4]} 48... g5 {[%clk 0:00:19.5]} 49. Rb7+ {[%clk 0:00:03.2]} 49... Kf6
{[%clk 0:00:19.3]} 50. Rb5 {[%clk 0:00:03]} 50... Ra3+ {[%clk 0:00:16.7]} 51.
Kg2 {[%clk 0:00:03]} 51... g4 {[%clk 0:00:16.8]} 52. Rb4 {[%clk 0:00:02.4]}
52... Ra2+ {[%clk 0:00:14.6]} 53. Kg1 {[%clk 0:00:02.5]} 53... Kg5 {[%clk
0:00:13.8]} 54. Rb6 {[%clk 0:00:01.8]} 54... e5 {[%clk 0:00:12.7]} 55. Rb4
{[%clk 0:00:02.4]} 55... f4 {[%clk 0:00:12.3]} 56. gxf4+ {[%clk 0:00:02]} 56...
exf4 {[%clk 0:00:12.4]} 57. Rb8 {[%clk 0:00:02]} 57... f3 {[%clk 0:00:10.4]} 58.
Rg8+ {[%clk 0:00:01.9]} 58... Kf4 {[%clk 0:00:10.8]} 59. Rf8+ {[%clk 0:00:02.6]}
59... Ke4 {[%clk 0:00:10.4]} 60. Re8+ {[%clk 0:00:03.3]} 60... Kf5 {[%clk
0:00:10.1]} 61. Rf8+ {[%clk 0:00:03.9]} 61... Kg5 {[%clk 0:00:10.5]} 62. Rg8+
{[%clk 0:00:03.8]} 62... Kf5 {[%clk 0:00:10.5]} 63. Rf8+ {[%clk 0:00:04.3]}
63... Ke6 {[%clk 0:00:10.8]} 64. Rg8 {[%clk 0:00:04.3]} 64... Ra4 {[%clk
0:00:10.5]} 65. Kf2 {[%clk 0:00:04.3]} 65... Kf7 {[%clk 0:00:09.3]} 66. Rg5
{[%clk 0:00:03.8]} 66... Rb4 {[%clk 0:00:08.3]} 67. Kg3 {[%clk 0:00:02.7]} 67...
Kf6 {[%clk 0:00:08.7]} 68. Rg8 {[%clk 0:00:03]} 68... Kf5 {[%clk 0:00:06.1]} 69.
Rf8+ {[%clk 0:00:03]} 69... Ke4 {[%clk 0:00:05.9]} 70. Re8+ {[%clk 0:00:02.2]}
70... Kd3 {[%clk 0:00:06.1]} 0-1

[Event "*** Titled Tuesday Blitz"]
[Site "Chess.com"]
[Date "2020.12.01"]
[Round "9"]
[White "SantoBlue"]
[Black "Sebastian"]
[Result "1-0"]
[WhiteElo "2902"]
[BlackElo "2948"]
[TimeControl "180+1"]
[EndTime "11:45:42 PST"]
[Termination "SantoBlue won on time"]

1. d4 {[%clk 0:03:00.9]} 1... Nf6 {[%clk 0:02:59.8]} 2. c4 {[%clk 0:03:00.8]}
2... e6 {[%clk 0:03:00.2]} 3. Nf3 {[%clk 0:02:59.6]} 3... d5 {[%clk 0:03:00.1]}
4. e3 {[%clk 0:02:58]} 4... Be7 {[%clk 0:02:59.7]} 5. Bd3 {[%clk 0:02:53.8]}
5... O-O {[%clk 0:02:58.9]} 6. b3 {[%clk 0:02:53.7]} 6... c5 {[%clk 0:02:58.2]}
7. O-O {[%clk 0:02:47.1]} 7... cxd4 {[%clk 0:02:55]} 8. exd4 {[%clk 0:02:48]}
8... Nc6 {[%clk 0:02:55.3]} 9. Bb2 {[%clk 0:02:45.7]} 9... b6 {[%clk 0:02:48.2]}
10. Nbd2 {[%clk 0:02:45.3]} 10... Bb7 {[%clk 0:02:47.6]} 11. Rc1 {[%clk
0:02:43.2]} 11... Rc8 {[%clk 0:02:47.2]} 12. Re1 {[%clk 0:02:37.6]} 12... Re8
{[%clk 0:02:46.5]} 13. Bb1 {[%clk 0:02:34.8]} 13... Bf8 {[%clk 0:02:45.3]} 14.
Ne5 {[%clk 0:02:33]} 14... dxc4 {[%clk 0:02:28.9]} 15. Nxc6 {[%clk 0:02:32.4]}
15... Bxc6 {[%clk 0:02:24.6]} 16. bxc4 {[%clk 0:02:32.5]} 16... g6 {[%clk
0:02:09.8]} 17. Nf3 {[%clk 0:02:13.7]} 17... Bg7 {[%clk 0:02:01]} 18. Ne5 {[%clk
0:02:13.7]} 18... Bb7 {[%clk 0:02:00.7]} 19. Qb3 {[%clk 0:02:02.8]} 19... Rc7
{[%clk 0:01:59.5]} 20. h3 {[%clk 0:01:56.3]} 20... Qa8 {[%clk 0:01:55.6]} 21. f3
{[%clk 0:01:48.3]} 21... Qd8 {[%clk 0:01:50.7]} 22. a4 {[%clk 0:01:46.5]} 22...
Nd7 {[%clk 0:01:44]} 23. f4 {[%clk 0:01:43.2]} 23... Qh4 {[%clk 0:01:21.7]} 24.
Qe3 {[%clk 0:01:37.8]} 24... Nxe5 {[%clk 0:01:19]} 25. fxe5 {[%clk 0:01:36]}
25... Bh6 {[%clk 0:01:17.8]} 26. Qe2 {[%clk 0:01:28.4]} 26... Bxc1 {[%clk
0:01:04.9]} 27. Rxc1 {[%clk 0:01:29.3]} 27... Rec8 {[%clk 0:01:03.7]} 28. Bd3
{[%clk 0:01:20.7]} 28... Qg3 {[%clk 0:01:03.1]} 29. Rc3 {[%clk 0:01:13]} 29...
Qf4 {[%clk 0:00:55.4]} 30. Rc1 {[%clk 0:01:11.8]} 30... Qg5 {[%clk 0:00:45.7]}
31. Rf1 {[%clk 0:01:09.4]} 31... Bxg2 {[%clk 0:00:42]} 32. Qxg2 {[%clk
0:00:52.5]} 32... Qe3+ {[%clk 0:00:41.8]} 33. Qf2 {[%clk 0:00:53.2]} 33... Qxd3
{[%clk 0:00:42]} 34. d5 {[%clk 0:00:54.1]} 34... Qxc4 {[%clk 0:00:41.9]} 35. d6
{[%clk 0:00:52.6]} 35... Rd7 {[%clk 0:00:41.4]} 36. Rc1 {[%clk 0:00:52.3]} 36...
Qa6 {[%clk 0:00:41.2]} 37. Rf1 {[%clk 0:00:49.5]} 37... Qxa4 {[%clk 0:00:39.9]}
38. Bc1 {[%clk 0:00:50.1]} 38... Rc2 {[%clk 0:00:28.2]} 39. Qg3 {[%clk 0:00:29]}
39... Qd4+ {[%clk 0:00:26.2]} 40. Be3 {[%clk 0:00:28.9]} 40... Qe4 {[%clk
0:00:21]} 41. h4 {[%clk 0:00:19.5]} 41... h5 {[%clk 0:00:18.7]} 42. Re1 {[%clk
0:00:17.8]} 42... Qg4 {[%clk 0:00:17.5]} 43. Qxg4 {[%clk 0:00:18]} 43... hxg4
{[%clk 0:00:18.1]} 44. Ra1 {[%clk 0:00:16.3]} 44... Kf8 {[%clk 0:00:15.1]} 45.
Ra4 {[%clk 0:00:16.3]} 45... Ke8 {[%clk 0:00:13.2]} 46. Rxg4 {[%clk 0:00:15.5]}
46... Rb7 {[%clk 0:00:07.8]} 47. h5 {[%clk 0:00:16.2]} 47... gxh5 {[%clk
0:00:07.6]} 48. Rg8+ {[%clk 0:00:17.1]} 48... Kd7 {[%clk 0:00:07.6]} 49. Bg5
{[%clk 0:00:18]} 49... Rc5 {[%clk 0:00:06.3]} 50. Bf6 {[%clk 0:00:15.7]} 50...
a5 {[%clk 0:00:04.5]} 51. Kf2 {[%clk 0:00:13.5]} 51... Kc6 {[%clk 0:00:04.1]}
52. Ra8 {[%clk 0:00:13]} 52... Rd7 {[%clk 0:00:03.1]} 53. Ke3 {[%clk 0:00:13.3]}
53... Kd5 {[%clk 0:00:03.2]} 54. Ra6 {[%clk 0:00:12.7]} 54... Rb5 {[%clk
0:00:02.9]} 55. Kd3 {[%clk 0:00:13.1]} 55... Rb4 {[%clk 0:00:03.2]} 56. Kc3
{[%clk 0:00:13.4]} 56... Kc6 {[%clk 0:00:03.4]} 57. Ra8 {[%clk 0:00:14.2]} 57...
Kb5 {[%clk 0:00:03.8]} 58. Rc8 {[%clk 0:00:14.2]} 58... Rg4 {[%clk 0:00:03.1]}
59. Kd3 {[%clk 0:00:13.5]} 59... Rg3+ {[%clk 0:00:02.3]} 60. Kd4 {[%clk
0:00:13.6]} 60... Rg4+ {[%clk 0:00:03.2]} 61. Kd3 {[%clk 0:00:14.3]} 61... Rg3+
{[%clk 0:00:01.7]} 62. Kd2 {[%clk 0:00:14.2]} 62... Rg2+ {[%clk 0:00:02]} 63.
Kc3 {[%clk 0:00:14.5]} 63... Rg3+ {[%clk 0:00:02]} 64. Kd4 {[%clk 0:00:15.1]}
64... Rg6 {[%clk 0:00:02.4]} 65. Rc7 {[%clk 0:00:14.3]} 65... Rxf6 {[%clk
0:00:02.7]} 66. Rxd7 {[%clk 0:00:13.6]} 66... Rf1 {[%clk 0:00:02.8]} 67. Rc7
{[%clk 0:00:13.2]} 67... Rd1+ {[%clk 0:00:03.5]} 68. Ke4 {[%clk 0:00:13.8]}
68... a4 {[%clk 0:00:03.9]} 69. Rxf7 {[%clk 0:00:14]} 69... a3 {[%clk
0:00:04.5]} 70. d7 {[%clk 0:00:11.1]} 70... a2 {[%clk 0:00:04.3]} 71. Rf1 {[%clk
0:00:11.8]} 71... Rxd7 {[%clk 0:00:04.2]} 72. Ra1 {[%clk 0:00:11.4]} 72... h4
{[%clk 0:00:04.8]} 73. Rxa2 {[%clk 0:00:11.1]} 73... h3 {[%clk 0:00:04.8]} 74.
Rb2+ {[%clk 0:00:12]} 74... Ka6 {[%clk 0:00:04.9]} 75. Rh2 {[%clk 0:00:12.9]}
75... Rh7 {[%clk 0:00:04.5]} 76. Ra2+ {[%clk 0:00:13.8]} 76... Kb7 {[%clk
0:00:04.6]} 77. Rh2 {[%clk 0:00:14.7]} 77... b5 {[%clk 0:00:05.2]} 78. Kf4
{[%clk 0:00:15.6]} 78... Kb6 {[%clk 0:00:05.6]} 79. Kg5 {[%clk 0:00:16.5]} 79...
b4 {[%clk 0:00:05.9]} 80. Kg6 {[%clk 0:00:17.4]} 80... Rh8 {[%clk 0:00:06.3]}
81. Kg7 {[%clk 0:00:17.7]} 81... Rh4 {[%clk 0:00:06.4]} 82. Kf6 {[%clk
0:00:18.6]} 82... b3 {[%clk 0:00:06.4]} 83. Kxe6 {[%clk 0:00:19]} 83... Kc5
{[%clk 0:00:06.9]} 84. Kf5 {[%clk 0:00:19.3]} 84... b2 {[%clk 0:00:07.3]} 85.
Rc2+ {[%clk 0:00:18.9]} 85... Kd4 {[%clk 0:00:06.5]} 86. Rxb2 {[%clk 0:00:19.3]}
86... h2 {[%clk 0:00:06.3]} 87. Rb4+ {[%clk 0:00:19.9]} 87... Kc5 {[%clk
0:00:04.7]} 88. Rxh4 {[%clk 0:00:20.8]} 1-0